bitfinex/quotes_SOLUSD_20250902
["timestamp","ask_amount","ask_price","bid_price","bid_amount"]
[1756798410763,0.68,203.68,203.67,0.14216157]
[1756798411372,2.22689679,203.7,203.67,5.05203908]
[1756798411664,0.68,203.69,203.67,5.05203908]
[1756798412358,0.68,203.68,203.67,0.14216157]
[1756798412567,0.68,203.68,203.67,5.05206484]
[1756798412741,16.5024908,203.7,203.67,5.05206484]
[1756798412941,0.68,203.69,203.67,5.05206484]
[1756798413653,0.68,203.68,203.67,0.14216157]
[1756798414440,0.68,203.68,203.66,5.0521731]
[1756798414849,0.68,203.68,203.66,0.14216157]
[1756798415050,0.68,203.67,203.66,0.14216157]
[1756798415348,13.59559401,203.67,203.66,0.14216157]
[1756798415562,13.59559401,203.67,203.66,5.05230592]
[1756798419169,14.28559401,203.67,203.66,5.05230592]
[1756798419850,14.28559401,203.67,203.66,0.14216157]
[1756798420995,14.28559401,203.67,203.66,5.05230592]
[1756798421543,13.59559401,203.67,203.66,5.05230592]
[1756798422349,13.59559401,203.67,203.66,5.74230592]
[1756798422546,0.06,203.69,203.66,7.96920271]
[1756798422770,13.65559401,203.69,203.68,0.14216157]
[1756798424074,0.06,203.69,203.68,0.14216157]
[1756798425571,0.75,203.69,203.67,5.0518817]
[1756798426146,0.06,203.69,203.67,5.0518817]
[1756798426347,0.06,203.69,203.67,5.7418817]
[1756798426755,0.06,203.69,203.67,5.0518817]
[1756798426960,14.28559401,203.68,203.67,0.14216157]
[1756798427782,16.5124908,203.68,203.62,4.91092397]
[1756798427980,2.22689679,203.66,203.63,3.66595088]
[1756798428163,2.22689679,203.66,203.63,0.14216157]
[1756798428164,14.28559401,203.65,203.63,0.14216157]
[1756798429264,14.28559401,203.65,203.63,5.05301819]
[1756798429771,0.69,203.65,203.63,5.05301819]
[1756798430378,13.59559401,203.66,203.63,5.05301819]
[1756798430588,13.59559401,203.66,203.63,5.74301819]
[1756798431278,13.59559401,203.66,203.63,5.05301819]
[1756798431481,14.28559401,203.66,203.63,5.05301819]
[1756798434071,14.28559401,203.66,203.63,5.08301819]
[1756798434893,0.69,203.65,203.63,0.03]
[1756798435097,2.91689679,203.65,203.63,0.03]
[1756798435303,2.22689679,203.64,203.63,0.03]
[1756798435796,2.91689679,203.64,203.63,0.03]
[1756798437195,0.69,203.64,203.63,0.03]
[1756798437496,14.28559401,203.64,203.63,0.03]
[1756798438382,16.5124908,203.64,203.63,0.03]
[1756798439006,21.42311739,203.64,203.63,0.03]
[1756798439189,25.61232168,203.64,203.63,0.03]
[1756798439879,59.40311739,203.64,203.63,0.03]
[1756798440079,21.42311739,203.64,203.63,0.03]
[1756798440302,59.40311739,203.64,203.63,0.03]
[1756798441092,59.68744053,203.64,203.63,0.03]
[1756798442094,59.70744053,203.64,203.63,0.03]
[1756798442990,61.67618653,203.64,203.63,0.03]
[1756798443716,81.67618653,203.64,203.63,0.03]
[1756798444422,39.59559401,203.62,203.61,0.03]
[1756798444585,89.0144011,203.62,203.58,0.03]
[1756798444784,18.50742661,203.59,203.58,0.03]
[1756798445008,84.7343234,203.59,203.58,0.03]
[1756798445218,85.4543234,203.59,203.58,0.03]
[1756798445387,83.22742661,203.59,203.58,0.03]
[1756798445579,85.4543234,203.59,203.58,0.03]
[1756798446395,87.4237474,203.59,203.58,0.03]
[1756798447003,39.87991715,203.56,203.51,0.03]
[1756798447318,80.10681394,203.56,203.51,0.03]
[1756798447516,80.82681394,203.56,203.51,0.03]
[1756798448223,18.50839184,203.55,203.51,0.03]
[1756798448408,20.73528863,203.55,203.51,0.03]
[1756798448606,39.59559401,203.53,203.51,0.03]
[1756798448797,80.14681394,203.53,203.51,0.03]
[1756798449129,80.86681394,203.53,203.51,0.03]
[1756798449302,82.83691794,203.53,203.51,0.03]
[1756798450026,91.7445051,203.53,203.51,0.03]
[1756798450211,96.65778569,203.53,203.51,0.03]
[1756798451060,13.59559401,203.5,203.49,0.03]
[1756798451328,39.59559401,203.48,203.47,0.03]
[1756798451509,81.62694756,203.48,203.47,0.03]
[1756798451709,82.34694756,203.48,203.47,0.03]
[1756798452429,87.26143547,203.48,203.47,0.03]
[1756798453310,89.23202447,203.48,203.47,0.03]
[1756798459738,17.08262442,203.47,203.46,0.03]
[1756798460041,17.80262442,203.47,203.46,0.03]
[1756798460439,19.77321342,203.47,203.46,0.03]
[1756798461734,24.68794286,203.47,203.46,0.03]
[1756798464222,24.68794286,203.47,203.44,0.03]
[1756798464223,39.59559401,203.45,203.44,0.03]
[1756798464432,13.87991715,203.44,203.42,0.03]
[1756798464632,26.0,203.41,203.4,0.2]
[1756798464817,39.87991715,203.37,203.34,0.03]
[1756798465012,13.87991715,203.36,203.34,0.03]
[1756798465238,56.22694756,203.35,203.34,0.03]
[1756798465436,52.73991715,203.35,203.34,0.03]
[1756798465738,56.22694756,203.35,203.34,0.03]
[1756798465935,17.36694756,203.35,203.34,0.03]
[1756798466138,56.22694756,203.35,203.34,0.74]
[1756798466328,63.11613726,203.35,203.34,0.03]
[1756798468035,15.85147715,203.35,203.34,0.74]
[1756798468247,63.09613726,203.35,203.34,0.74]
[1756798469029,19.05418442,203.35,203.34,0.74]
[1756798469234,56.04262442,203.35,203.34,0.74]
[1756798469939,60.96025412,203.35,203.34,0.03]
[1756798470141,61.96457726,203.35,203.34,0.03]
[1756798470539,13.87991715,203.34,203.31,0.03]
[1756798470739,13.59559401,203.31,203.28,0.03]
[1756798471067,17.36694756,203.29,203.28,0.03]
[1756798471223,57.04694756,203.29,203.28,0.03]
[1756798471942,59.01909056,203.29,203.28,0.03]
[1756798472145,63.93817167,203.29,203.28,0.03]
[1756798473635,15.56773701,203.29,203.28,0.03]
[1756798473839,58.71476742,203.29,203.28,0.74]
[1756798474041,63.63384853,203.29,203.28,0.03]
[1756798474242,63.91817167,203.29,203.28,0.03]
[1756798474555,64.63817167,203.29,203.28,0.03]
[1756798475049,63.91817167,203.29,203.28,0.03]
[1756798475631,13.59559401,203.26,203.25,0.03]
[1756798475829,56.68262442,203.26,203.25,0.03]
[1756798476033,62.26243156,203.26,203.25,0.03]
[1756798476650,65.28946156,203.26,203.25,0.03]
[1756798476831,65.5737847,203.26,203.25,0.03]
[1756798479747,25.9737847,203.26,203.25,0.03]
[1756798480065,65.5337847,203.26,203.25,0.03]
[1756798482760,22.48675429,203.26,203.25,0.03]
[1756798483066,65.4937847,203.26,203.25,0.03]
[1756798486080,66.1537847,203.26,203.25,0.03]
[1756798487265,13.59559401,203.22,203.13,2.172533]
[1756798487467,17.08262442,203.16,203.15,0.14216157]
[1756798487662,56.50262442,203.16,203.15,0.14216157]
[1756798488056,53.01559401,203.16,203.15,0.14216157]
[1756798488254,53.01559401,203.16,203.15,0.84216157]
[1756798488466,13.59559401,203.16,203.15,0.84216157]
[1756798488666,53.01559401,203.16,203.15,0.84216157]
[1756798489958,13.59559401,203.16,203.15,5.76463265]
[1756798490270,39.38,203.18,203.15,9.25166306]
[1756798490470,52.97559401,203.18,203.17,0.14216157]
[1756798490773,52.97559401,203.18,203.17,0.84216157]
[1756798490974,52.97559401,203.18,203.17,5.76414808]
[1756798492366,52.95559401,203.18,203.17,5.76414808]
[1756798493759,13.59559401,203.18,203.17,5.76414808]
[1756798493956,13.59559401,203.18,203.17,0.84216157]
[1756798495280,17.08262442,203.18,203.17,0.84216157]
[1756798496974,13.59559401,203.18,203.17,0.84216157]
[1756798497184,17.08262442,203.18,203.17,0.84216157]
[1756798497982,13.59559401,203.18,203.17,0.84216157]
[1756798498672,13.59559401,203.18,203.17,5.76414808]
[1756798500180,13.59559401,203.18,203.17,0.84216157]
[1756798500367,3.48703041,203.22,203.17,9.25117849]
[1756798500566,13.59559401,203.2,203.19,0.14216157]
[1756798501091,133.8,203.26,203.21,0.14216157]
[1756798501287,13.59559401,203.24,203.23,0.14216157]
[1756798502158,13.59559401,203.24,203.23,0.84216157]
[1756798502357,53.21559401,203.24,203.23,0.84216157]
[1756798502561,53.21559401,203.24,203.23,5.76269495]
[1756798502773,53.21559401,203.24,203.23,0.84216157]
[1756798504574,53.21559401,203.24,203.23,5.76269495]
[1756798505274,13.59559401,203.24,203.23,9.24972536]
[1756798505689,13.59559401,203.24,203.23,5.76269495]
[1756798507399,0.06,203.25,203.23,5.76269495]
[1756798507596,13.65559401,203.25,203.24,4.29919198]
[1756798507804,0.06,203.25,203.24,3.62919198]
[1756798507975,0.06,203.25,203.24,4.29919198]
[1756798508807,0.06,203.25,203.24,9.21948326]
[1756798511502,0.06,203.25,203.24,5.73245285]
[1756798511705,0.06,203.25,203.24,7.96560636]
[1756798515079,0.06,203.25,203.24,5.73245285]
[1756798515282,0.06,203.25,203.24,7.96560636]
[1756798516679,0.06,203.25,203.24,5.73245285]
[1756798516902,0.06,203.25,203.24,7.96560636]
[1756798519113,0.06,203.25,203.24,5.73245285]
[1756798519409,0.06,203.25,203.24,26.0]
[1756798519709,0.06,203.25,203.24,28.37531508]
[1756798519885,0.06,203.25,203.24,28.90315351]
[1756798520092,0.06,203.25,203.24,29.04531508]
[1756798520416,0.06,203.28,203.25,26.14216157]
[1756798520596,0.06,203.28,203.27,2.37531508]
[1756798521103,0.06,203.28,203.27,3.04531508]
[1756798521283,0.06,203.28,203.27,5.73172668]
[1756798521480,0.06,203.28,203.27,7.96488019]
[1756798524904,0.06,203.28,203.27,5.73172668]
[1756798525097,0.06,203.28,203.27,7.96488019]
[1756798526169,0.06,203.28,203.27,5.73172668]
[1756798526324,0.06,203.28,203.27,7.96488019]
[1756798526506,0.06,203.28,203.27,5.73172668]
[1756798526811,0.06,203.28,203.27,7.96488019]
[1756798530114,0.06,203.28,203.27,5.73172668]
[1756798530326,0.06,203.28,203.27,7.96488019]
[1756798531116,0.06,203.28,203.27,5.73172668]
[1756798531316,0.06,203.28,203.27,7.96488019]
[1756798532405,0.06,203.28,203.27,5.06172668]
[1756798533523,0.06,203.28,203.27,7.29488019]
[1756798534429,14.33559401,203.28,203.27,5.06172668]
[1756798534916,13.59559401,203.27,203.25,4.91984085]
[1756798535121,0.68,203.26,203.25,4.91984085]
[1756798535427,0.68,203.26,203.25,31.06200242]
[1756798536118,14.27559401,203.26,203.25,26.0]
[1756798536417,13.59559401,203.25,203.24,0.17216157]
[1756798536626,0.66,203.26,203.25,0.14216157]
[1756798536841,0.66,203.26,203.24,0.03]
[1756798537921,2.23315351,203.25,203.24,0.03]
[1756798538338,2.89315351,203.25,203.24,0.03]
[1756798539710,0.66,203.25,203.24,0.03]
[1756798540006,2.89315351,203.25,203.24,0.03]
[1756798543102,0.66,203.25,203.24,0.03]
[1756798543336,2.89315351,203.25,203.24,0.03]
[1756798544136,0.06,203.28,203.25,0.14216157]
[1756798544330,13.65559401,203.28,203.25,0.83216157]
[1756798544535,13.65559401,203.28,203.27,2.37531508]
[1756798544715,13.65559401,203.28,203.27,0.14216157]
[1756798545134,0.06,203.28,203.27,0.14216157]
[1756798545634,0.06,203.28,203.27,2.37531508]
[1756798545955,0.06,203.28,203.27,7.29488019]
[1756798546162,0.06,203.28,203.27,5.06172668]
[1756798546337,0.06,203.28,203.27,7.98488019]
[1756798547643,0.06,203.28,203.27,9.95585719]
[1756798549166,0.06,203.3,203.29,26.14216157]
[1756798549452,0.06,203.3,203.29,28.37531508]
[1756798549831,0.06,203.3,203.29,33.98439619]
[1756798550241,0.06,203.3,203.29,31.06124268]
[1756798551030,0.72,203.3,203.24,2.001171]
[1756798551348,13.59559401,203.26,203.24,0.03]
[1756798551537,13.59559401,203.26,203.25,26.0]
[1756798551742,14.25559401,203.26,203.25,0.14216157]
[1756798551943,16.48874752,203.26,203.24,0.03]
[1756798552144,15.82874752,203.25,203.24,0.03]
[1756798552550,55.86874752,203.25,203.24,0.03]
[1756798552950,53.63559401,203.25,203.24,0.03]
[1756798553152,55.86874752,203.25,203.24,0.03]
[1756798554641,53.63559401,203.25,203.24,0.03]
[1756798554837,13.59559401,203.25,203.24,0.03]
[1756798555039,55.82874752,203.25,203.24,0.03]
[1756798556196,53.59559401,203.25,203.24,0.03]
[1756798556370,55.80874752,203.25,203.24,0.03]
[1756798556739,14.25559401,203.25,203.24,0.03]
[1756798556939,53.59559401,203.25,203.24,0.03]
[1756798558469,55.82874752,203.25,203.24,0.03]
[1756798559262,16.48874752,203.25,203.24,0.03]
[1756798559468,55.78874752,203.25,203.24,0.03]
[1756798559666,16.48874752,203.25,203.24,0.03]
[1756798559989,16.48874752,203.25,203.24,0.17216157]
[1756798559990,14.25559401,203.25,203.24,0.17216157]
[1756798560147,52.91559401,203.25,203.24,0.17216157]
[1756798560340,13.59559401,203.25,203.24,5.09245285]
[1756798560545,13.59559401,203.25,203.24,5.78245285]
[1756798560778,52.89559401,203.25,203.24,5.09245285]
[1756798560977,52.89559401,203.25,203.24,0.17216157]
[1756798561369,53.55559401,203.25,203.24,0.17216157]
[1756798561969,55.78874752,203.25,203.24,0.03]
[1756798563256,60.70879672,203.25,203.24,0.03]
[1756798565361,13.59559401,203.25,203.24,0.03]
[1756798565566,55.75874752,203.25,203.24,0.03]
[1756798567160,13.59559401,203.25,203.24,0.03]
[1756798567364,52.81559401,203.25,203.24,0.03]
[1756798568587,53.52559401,203.25,203.24,0.03]
[1756798568982,55.75874752,203.25,203.24,0.03]
[1756798569488,60.67879672,203.25,203.24,0.03]
[1756798569782,55.75874752,203.25,203.24,0.03]
[1756798569958,13.59559401,203.25,203.24,0.03]
[1756798570160,52.75559401,203.25,203.24,0.03]
[1756798571768,13.59559401,203.25,203.24,3.06531508]
[1756798571970,52.71559401,203.25,203.24,3.06531508]
[1756798572171,13.59559401,203.25,203.24,3.06531508]
[1756798572384,0.06,203.28,203.24,3.06531508]
[1756798572586,0.06,203.28,203.27,2.23315351]
[1756798572809,13.65559401,203.28,203.27,2.37531508]
[1756798572977,13.65559401,203.28,203.27,3.03531508]
[1756798573564,13.65559401,203.28,203.27,4.29146497]
[1756798573965,13.65559401,203.28,203.27,9.21103008]
[1756798574284,13.65559401,203.28,203.27,4.29146497]
[1756798574459,13.65559401,203.28,203.27,0.14216157]
[1756798574659,14.36559401,203.28,203.27,0.14216157]
[1756798575084,13.65559401,203.28,203.27,0.14216157]
[1756798577971,13.65559401,203.28,203.27,5.06172668]
[1756798578173,13.65559401,203.28,203.27,8.55103008]
[1756798578493,13.65559401,203.28,203.27,3.63146497]
[1756798578871,13.65559401,203.28,203.27,0.14216157]
[1756798579866,13.65559401,203.28,203.27,5.06172668]
[1756798580264,0.06,203.28,203.27,9.21103008]
[1756798582386,0.06,203.28,203.27,0.14216157]
[1756798583392,39.04,203.28,203.27,0.14216157]
[1756798583874,39.75,203.28,203.27,0.14216157]
[1756798584068,39.04,203.28,203.27,0.14216157]
[1756798584696,52.63559401,203.28,203.27,0.14216157]
[1756798586698,52.63559401,203.28,203.27,5.06172668]
[1756798590504,13.65559401,203.28,203.27,5.06172668]
[1756798590684,38.96,203.28,203.27,9.21103008]
[1756798590991,13.65559401,203.28,203.27,9.21103008]
[1756798591968,14.36559401,203.28,203.27,0.14216157]
[1756798592172,13.65559401,203.28,203.27,0.14216157]
[1756798592772,17.85489741,203.28,203.27,0.14216157]
[1756798592972,14.36559401,203.28,203.27,0.14216157]
[1756798593174,13.65559401,203.28,203.27,0.14216157]
[1756798593589,14.36559401,203.28,203.27,0.14216157]
[1756798594178,13.65559401,203.28,203.27,0.14216157]
[1756798594784,52.49559401,203.28,203.27,0.14216157]
[1756798595180,52.49559401,203.28,203.27,5.06172668]
[1756798595386,52.49559401,203.28,203.27,5.79172668]
[1756798595602,52.49559401,203.28,203.27,5.09172668]
[1756798595900,52.49559401,203.28,203.27,0.17216157]
[1756798596101,13.65559401,203.28,203.27,0.17216157]
[1756798596403,52.49559401,203.28,203.27,0.17216157]
[1756798596702,13.65559401,203.28,203.27,5.09172668]
[1756798596900,52.49559401,203.28,203.27,5.09172668]
[1756798597406,52.47559401,203.28,203.27,9.28103008]
[1756798597603,13.65559401,203.28,203.27,9.28103008]
[1756798599782,13.65559401,203.28,203.27,5.79172668]
[1756798600711,13.65559401,203.28,203.27,9.28103008]
[1756798601807,0.06,203.28,203.27,9.28103008]
[1756798602396,0.06,203.3,203.27,9.28103008]
[1756798602594,0.06,203.3,203.29,29.4893034]
[1756798602803,1e-08,203.31,203.3,33.12076837]
[1756798602987,1e-08,203.31,203.3,33.82076837]
[1756798603189,1e-08,203.31,203.3,30.33146497]
[1756798604602,1e-08,203.31,203.3,35.25030412]
[1756798605502,1e-08,203.31,203.3,37.22108712]
[1756798606308,1e-08,203.31,203.3,35.25030412]
[1756798613790,1e-08,203.31,203.3,35.28030412]
[1756798615205,1e-08,203.31,203.3,37.25108712]
[1756798616398,0.06,203.33,203.31,0.42648471]
[1756798616603,0.06,203.33,203.32,30.61578811]
[1756798617298,0.06,203.33,203.32,30.33146497]
[1756798617498,0.06,203.33,203.32,3.63146497]
[1756798618497,0.06,203.33,203.32,8.54982027]
[1756798618701,0.06,203.33,203.32,5.06051687]
[1756798618702,0.75,203.33,203.32,5.06051687]
[1756798618912,0.75,203.33,203.31,4.9185703]
[1756798619108,14.28559401,203.32,203.3,4.94882532]
[1756798619417,0.06,203.33,203.31,0.14216157]
[1756798619618,13.65559401,203.33,203.31,0.14216157]
[1756798620005,0.69,203.32,203.31,0.14216157]
[1756798620394,0.69,203.32,203.31,5.06075878]
[1756798620602,14.28559401,203.32,203.3,26.03]
[1756798620917,14.28559401,203.31,203.3,26.17216157]
[1756798621422,14.28559401,203.31,203.3,5.09100072]
[1756798622502,42.1293034,203.33,203.31,0.14216157]
[1756798622503,13.59559401,203.32,203.31,0.14216157]
[1756798622828,14.28559401,203.32,203.31,0.14216157]
[1756798624010,17.77489741,203.32,203.31,0.14216157]
[1756798624706,17.77489741,203.32,203.3,0.17216157]
[1756798624915,0.69,203.31,203.3,0.17216157]
[1756798625111,4.1793034,203.31,203.3,0.17216157]
[1756798626505,0.69,203.31,203.3,0.17216157]
[1756798626827,4.1793034,203.31,203.3,0.17216157]
[1756798627032,9.09790061,203.31,203.3,0.03]
[1756798627230,12.58720401,203.31,203.3,0.03]
[1756798628237,26.18279802,203.31,203.3,0.03]
[1756798628436,26.46712116,203.31,203.3,0.03]
[1756798628609,29.74234397,203.31,203.3,0.03]
[1756798629008,0.28432314,203.29,203.27,0.03]
[1756798629227,0.28432314,203.26,203.25,0.03]
[1756798629428,0.28432314,203.25,203.24,0.03]
[1756798629634,3.77362654,203.25,203.24,0.03]
[1756798629813,4.45362654,203.25,203.24,0.03]
[1756798630236,39.4,203.25,203.24,0.03]
[1756798630410,17.76489741,203.25,203.24,0.03]
[1756798630609,56.48489741,203.25,203.24,0.03]
[1756798630914,17.08489741,203.25,203.24,0.03]
[1756798631113,55.80489741,203.25,203.24,0.03]
[1756798631424,52.31559401,203.25,203.24,0.03]
[1756798631625,56.48489741,203.25,203.24,0.03]
[1756798632825,52.99559401,203.25,203.24,0.03]
[1756798633029,56.48489741,203.25,203.24,0.03]
[1756798633532,55.78953936,203.25,203.24,0.03]
[1756798635120,17.06953936,203.25,203.24,0.03]
[1756798635437,16.38953936,203.25,203.24,0.03]
[1756798635614,55.06953936,203.25,203.24,0.03]
[1756798636330,55.08953936,203.25,203.24,0.03]
[1756798636533,13.59559401,203.25,203.24,0.03]
[1756798636715,52.29559401,203.25,203.24,5.78245285]
[1756798636911,13.59559401,203.25,203.24,5.78245285]
[1756798637936,13.59559401,203.25,203.24,5.09245285]
[1756798639527,16.38953936,203.25,203.24,0.17216157]
[1756798639729,17.06953936,203.25,203.24,0.17216157]
[1756798640323,22.13175013,203.25,203.24,0.03]
[1756798640532,22.2739117,203.25,203.24,0.03]
[1756798641224,17.3538625,203.25,203.24,0.03]
[1756798642036,56.0538625,203.25,203.24,0.03]
[1756798642428,60.9739117,203.25,203.24,0.03]
[1756798642630,52.95559401,203.25,203.24,0.03]
[1756798642835,55.74953936,203.25,203.24,0.03]
[1756798643744,60.9539117,203.25,203.24,0.03]
[1756798644518,58.15996635,203.25,203.24,0.03]
[1756798644740,60.9539117,203.25,203.24,0.03]
[1756798645218,17.06953936,203.25,203.24,0.03]
[1756798645418,55.80953936,203.25,203.24,0.03]
[1756798646037,61.0139117,203.25,203.24,0.03]
[1756798647230,18.80045053,203.23,203.22,0.03]
[1756798647429,55.10953936,203.23,203.22,0.03]
[1756798647634,55.78953936,203.23,203.22,0.03]
[1756798649438,60.71007274,203.23,203.22,0.03]
[1756798651339,55.10953936,203.23,203.22,0.03]
[1756798651845,52.47559401,203.23,203.22,0.86216157]
[1756798652032,55.26953936,203.23,203.22,0.86216157]
[1756798652223,55.26953936,203.23,203.22,0.17216157]
[1756798653949,55.24953936,203.23,203.22,0.17216157]
[1756798654324,55.22953936,203.23,203.22,5.78293708]
[1756798654545,52.43559401,203.23,203.22,5.78293708]
[1756798654741,13.59559401,203.23,203.22,5.78293708]
[1756798654944,52.43559401,203.23,203.22,5.78293708]
[1756798655333,0.06,203.25,203.22,5.78293708]
[1756798655533,0.06,203.25,203.24,2.79394535]
[1756798655742,0.06,203.25,203.24,28.93610692]
[1756798656034,0.06,203.25,203.24,34.5663982]
[1756798656660,55.26953936,203.25,203.24,0.14216157]
[1756798658252,52.47559401,203.25,203.24,5.77245285]
[1756798658448,38.88,203.25,203.24,5.77245285]
[1756798659329,52.47559401,203.25,203.24,5.77245285]
[1756798659940,55.26953936,203.25,203.24,0.14216157]
[1756798660941,38.84,203.25,203.24,5.77245285]
[1756798665649,0.06,203.25,203.24,5.77245285]
[1756798667670,52.33559401,203.25,203.24,5.06245285]
[1756798667865,55.12953936,203.25,203.24,0.14216157]
[1756798668163,55.12953936,203.25,203.22,26.03]
[1756798668164,13.59559401,203.24,203.22,26.03]
[1756798668360,13.59559401,203.24,203.23,0.14216157]
[1756798668664,52.29559401,203.24,203.23,0.14216157]
[1756798669543,55.08953936,203.24,203.23,0.14216157]
[1756798670060,55.08953936,203.24,203.23,5.06269495]
[1756798670764,55.74953936,203.24,203.22,5.09287081]
[1756798670958,55.74953936,203.24,203.22,0.17216157]
[1756798670959,16.38953936,203.23,203.22,0.17216157]
[1756798671166,17.04953936,203.23,203.22,0.17216157]
[1756798671764,17.04953936,203.23,203.22,0.03]
[1756798671970,28.5096439,203.23,203.22,0.03]
[1756798672168,31.78947817,203.23,203.22,0.03]
[1756798672880,25.53423015,203.23,203.22,0.03]
[1756798673364,63.88990701,203.23,203.22,0.03]
[1756798675155,60.61007274,203.23,203.22,0.03]
[1756798675962,75.35008878,203.23,203.22,0.03]
[1756798676163,27.8496439,203.22,203.21,0.03]
[1756798676353,32.77041941,203.22,203.21,0.03]
[1756798676550,28.5096439,203.22,203.21,0.03]
[1756798676754,60.87463801,203.22,203.21,0.03]
[1756798677752,55.00953936,203.22,203.21,0.03]
[1756798678454,54.98953936,203.22,203.21,0.03]
[1756798679068,13.59559401,203.22,203.21,0.03]
[1756798679248,54.98953936,203.22,203.21,0.74]
[1756798679767,54.98953936,203.22,203.21,0.03]
[1756798679966,54.96953936,203.22,203.21,0.03]
[1756798680272,55.62953936,203.22,203.21,0.03]
[1756798681066,60.55031487,203.22,203.21,0.03]
[1756798681653,75.28818206,203.22,203.21,0.03]
[1756798682256,0.28432314,203.21,203.19,0.03]
[1756798682453,71.33090374,203.2,203.19,0.03]
[1756798682656,71.99090374,203.2,203.19,0.03]
[1756798682867,72.03090374,203.2,203.19,0.03]
[1756798683788,54.98953936,203.2,203.19,0.03]
[1756798684070,52.19559401,203.2,203.19,0.88216157]
[1756798684852,13.59559401,203.2,203.19,0.88216157]
[1756798685052,52.19559401,203.2,203.19,0.88216157]
[1756798685758,52.19559401,203.2,203.19,5.80366361]
[1756798689481,52.19559401,203.2,203.19,0.88216157]
[1756798690384,63.38474455,203.2,203.19,0.03]
[1756798690674,63.38474455,203.2,203.17,0.03]
[1756798690675,13.59559401,203.19,203.17,0.03]
[1756798690862,55.10953936,203.18,203.17,0.03]
[1756798691050,55.78953936,203.18,203.17,0.03]
[1756798691978,60.71128362,203.18,203.17,0.03]
[1756798693559,62.28850801,203.18,203.17,0.03]
[1756798693764,62.57283115,203.18,203.17,0.03]
[1756798693962,13.59559401,203.17,203.16,0.03]
[1756798694158,17.96676375,203.17,203.16,0.03]
[1756798694354,18.64676375,203.17,203.16,0.03]
[1756798696279,23.56875026,203.17,203.16,0.03]
[1756798696479,157.36875026,203.17,203.16,0.03]
[1756798698090,0.28432314,203.16,203.14,0.03]
[1756798698268,61.81355797,203.15,203.14,0.03]
[1756798698469,62.49355797,203.15,203.14,0.03]
[1756798699858,62.47355797,203.15,203.14,0.03]
[1756798700064,52.21559401,203.15,203.14,0.03]
[1756798700291,56.58676375,203.15,203.14,0.03]
[1756798700687,17.96676375,203.15,203.14,0.03]
[1756798700984,13.59559401,203.15,203.14,0.82216157]
[1756798701170,17.96676375,203.15,203.14,0.82216157]
[1756798701490,56.56676375,203.15,203.14,0.17216157]
[1756798702488,56.56676375,203.15,203.14,0.82216157]
[1756798702887,17.96676375,203.15,203.14,0.82216157]
[1756798703091,56.54676375,203.15,203.14,0.82216157]
[1756798703469,17.96676375,203.15,203.14,0.82216157]
[1756798703870,56.54676375,203.15,203.14,0.82216157]
[1756798708181,133.86,203.17,203.15,0.14216157]
[1756798708182,13.65559401,203.17,203.15,0.14216157]
[1756798708389,52.17559401,203.16,203.15,0.14216157]
[1756798708989,56.54676375,203.16,203.15,0.79216157]
[1756798709501,56.54676375,203.16,203.15,0.14216157]
[1756798710384,13.59559401,203.15,203.14,0.17216157]
[1756798710582,17.96676375,203.15,203.14,0.17216157]
[1756798714493,17.96676375,203.15,203.14,0.82216157]
[1756798714698,56.54676375,203.15,203.14,0.82216157]
[1756798715000,52.17559401,203.15,203.14,5.74487496]
[1756798718194,0.06,203.17,203.14,5.74487496]
[1756798718376,0.06,203.17,203.15,0.86216157]
[1756798718377,38.58,203.16,203.15,0.86216157]
[1756798720084,38.58,203.16,203.15,0.14216157]
[1756798720287,38.64,203.16,203.15,0.86216157]
[1756798720491,43.01116974,203.16,203.15,0.86216157]
[1756798721206,43.01116974,203.16,203.15,0.14216157]
[1756798721701,43.01116974,203.16,203.15,0.86216157]
[1756798721908,38.64,203.16,203.15,0.86216157]
[1756798722091,38.64,203.16,203.15,0.14216157]
[1756798724387,38.64,203.16,203.15,0.86216157]
[1756798724577,0.06,203.16,203.15,5.78463265]
[1756798725007,38.64,203.16,203.15,5.78463265]
[1756798728696,0.06,203.16,203.15,36.15580239]